[Event "Marmaris Karya-19 GM-May 2022"]
[Site "Icmeler-Marmaris"]
[Date "2022.05.15"]
[Round "3.1"]
[White "Caglar, Sila"]
[Black "Toufighi, Homayoon"]
[Result "1-0"]
[ECO "B01"]
[WhiteElo "2133"]
[BlackElo "2439"]
[Annotator "TA"]
[PlyCount "89"]
[EventDate "2022.05.15"]
[EventType "schev"]
[EventCountry "TUR"]
[SourceTitle "playchess.com"]
[Source "ChessBase"]
[SourceQuality "1"]
[TimeControl "5400+30"]

{[%evp 17,89,0,3,8,0,0,0,0,0,0,0,-8,0,0,0,-2,0,0,0,-18,42,0,0,-13,106,107,304,295,228,78,243,70,325,285,312,320,320,303,308,310,287,292,484,435,435,469,557,540,800,789,1832,1767,1216,1060,960,919,2614,842,985,938,5322,5169,5235,1304,1589,1390,1080,974,1856,1613,29973,29974,29974,29975]} 1. e4 {[%emt 0:01:00]} d5 {[%emt 0:01:00]} 2. exd5 {[%emt 0:00:30]} Qxd5 {[%emt 0:00:30]} 3. Nc3 {[%emt 0:00:30]} Qa5 {[%emt 0:00:30]} 4. Nf3 {[%emt 0:00:30]} Nf6 {[%emt 0:00:30]} 5. d4 {[%emt 0:00:30]} Nc6 {[%emt 0:03:30]} 6. Be2 {[%emt 0:07:30]} Bg4 {[%emt 0:01:30]} 7. h3 {[%emt 0:00:30]} Bh5 {[%emt 0:00:30]} 8. O-O {[%emt 0:04:30]} O-O-O {[%emt 0:00:00]} 9. Be3 {[%emt 0:00:00]} e5 {[%emt 0:07:00]} 10. Nxe5 {[%emt 0:05:00] B01: Scandinavian Defence.} Bxe2 {[%emt 0:01:30]} 11. Qxe2 {[%emt 0:05:30]} Nxe5 {[%emt 0:00:30]} 12. dxe5 {[%emt 0:00:30] The position is equal.} Qxe5 {[%emt 0:00:00] [#]} 13. Rfd1 $146 {[%emt 0:01:30]} (13. Bxa7 $2 Qxe2 14. Nxe2 b6 $19) ({Predecessor:} 13. Nb5 Bc5 14. Qc4 Bxe3 15. fxe3 a6 16. Nc3 Qxe3+ 17. Kh1 Rd7 18. Rae1 Qg5 19. Ne4 Nxe4 20. Qxe4 {0-1 (34) Dobrikov,M (2290)-Frischmann,R (2347) Magdeburg 2020}) 13... Bd6 {[%emt 0:00:00] ( -> ...Qh2+)} 14. f4 {[%emt 0:00:30]} Qf5 {[%emt 0:00:30]} 15. Qb5 $36 {[%emt 0:07:30][%mdl 2048] White has some pressure.} Qh5 {[%emt 0:18:30]} 16. Rd3 {[%emt 0:10:30]} a6 {[%emt 0:02:30]} 17. Qc4 {[%emt 0:00:00]} Rhe8 {[%emt 0:00:30][%cal Oe8e3]} 18. b4 {[%emt 0:02:00]} Qh4 {[%emt 0:00:30]} (18... Qf5 $11) 19. Rad1 {[%emt 0:04:30]} (19. Qxf7 Bxf4 20. Bf2 Bh2+ $1 {[%mdl 512]} 21. Kxh2 Qxf2 $17) (19. Rf1 $5 {[%cal Rb4b5]}) 19... Rd7 {[%emt 0:14:30][%cal Oe8e3]} 20. Qd4 {[%emt 0:26:30] [#]} b6 {[%emt 0:07:30]} (20... Bxb4 $1 $11 21. Qxb4 Rxd3 22. Rxd3 Qe1+ 23. Kh2 Rxe3 24. Qf8+ Re8 25. Qxg7 Qe6) 21. Qc4 $1 $16 {[%emt 0:01:30][%csl LRa6,LRb6,LRd6]} Kb7 {[%emt 0:00:30]} (21... Rxe3 $16 22. Rxe3 Qxf4 23. Qxf4 Bxf4) 22. Bf2 $18 {[%emt 0:03:29]} Qh5 {[%emt 0:02:30] [#]} 23. a4 {[%emt 0:01:06]} (23. Rxd6 $1 $18 {[%mdl 512] has better winning chances.} Rxd6 24. Rxd6 cxd6 25. b5 (25. Qd4 Nd7 $18) 25... axb5 26. Nxb5 Qd1+ 27. Kh2) 23... Red8 $2 {[%emt 0:06:30]} (23... Qf5 $16) 24. Nd5 $2 {[%emt 0:05:53]} ({White should play} 24. g4 $18 Nxg4 25. Qe4+ Kb8 26. hxg4 Qxg4+ 27. Kf1) 24... Qf5 {[%emt 0:12:58][%mdl 8192]} (24... Nxd5 $1 $14 25. g4 (25. Qxd5+ Qxd5 26. Rxd5 Kc8 $11) (25. Rxd5 Bxf4 26. Rxd7 Qxd1+ 27. Rxd1 Rxd1+ 28. Be1 Bg3 $17) 25... Qh6 26. Qxd5+ Kb8) 25. Nxf6 {[%emt 0:02:30]} gxf6 {[%emt 0:03:32]} 26. b5 {[%emt 0:05:27]} axb5 {[%emt 0:00:33]} 27. axb5 {[%emt 0:00:01]} Bc5 {[%emt 0:00:36] [#]} 28. g4 $1 {[%emt 0:02:00]} Rxd3 {[%emt 0:00:29]} 29. Rxd3 {[%emt 0:00:05]} (29. gxf5 $2 {loses.} Rxd1+ 30. Kg2 R1d2 $19) 29... Bxf2+ $2 {[%emt 0:02:45]} (29... Rg8 $2 {[#]} 30. Rd8 $3 {[%mdl 512]} Rxd8 31. gxf5 $18) (29... Qc8 {is a better defense.} 30. Qxf7 (30. Bxc5 Rxd3 31. Qxd3 bxc5 $18) 30... Bd6 31. Qxf6 (31. Qc4 Kb8 $16) 31... Rf8) 30. Kxf2 {[%emt 0:00:02][%mdl 4096] Endgame KQR-KQR} Qc8 {[%emt 0:00:17]} 31. Qxf7 {[%emt 0:00:12]} Kb8 {[%emt 0:02:33]} 32. Qxh7 {[%emt 0:00:27]} Rh8 {[%emt 0:00:37]} 33. Qe7 {[%emt 0:00:52]} f5 {[%emt 0:01:46]} 34. g5 {[%emt 0:00:05] And now g6 would win.} Qg8 {[%emt 0:01:23]} 35. Qf6 {[%emt 0:00:25] Ra3 is the strong threat.} Qe8 {[%emt 0:00:10]} 36. Re3 {[%emt 0:00:38]} Qg8 {[%emt 0:00:12]} 37. Qxf5 {[%emt 0:00:31]} (37. Ra3 $142 Qf8 38. Qa1 Qc5+ 39. Kg3 Qxa3+ 40. Qxa3) 37... Qc4 {[%emt 0:00:09]} 38. g6 {[%emt 0:01:14] Hoping for g7.} Rd8 {[%emt 0:00:44]} 39. g7 {[%emt 0:00:58]} Rg8 {[%emt 0:02:13]} 40. Qf8+ {[%emt 0:01:08]} Kb7 {[%emt 0:00:01] [#]} 41. Qxg8 $3 {[%emt 0:00:17][%mdl 512]} Qxg8 {[%emt 0:00:58]} 42. Rg3 {[%emt 0:00:03]} Ka7 {[%emt 0:00:22]} 43. h4 {[%emt 0:00:08]} Qc4 {[%emt 0:02:13]} 44. g8=Q {[%emt 0:00:08]} Qxc2+ {[%emt 0:00:03]} 45. Kg1 {Weighted Error Value: White=0.28 (precise) /Black=0.73} 1-0

[Event "Marmaris Karya-19 GM-May 2022"]
[Site "Icmeler-Marmaris"]
[Date "2022.05.15"]
[Round "3.2"]
[White "Gunduz, Umut Erdem"]
[Black "Maghalashvili, Davit"]
[Result "1/2-1/2"]
[ECO "B33"]
[WhiteElo "2316"]
[BlackElo "2456"]
[Annotator "TA"]
[PlyCount "83"]
[EventDate "2022.05.15"]
[EventType "schev"]
[EventCountry "TUR"]
[SourceTitle "playchess.com"]
[Source "ChessBase"]
[SourceQuality "1"]
[TimeControl "5400+30"]

{[%evp 20,83,22,7,7,6,4,3,10,0,2,0,0,0,0,0,0,0,0,0,0,0,0,0,0,0,0,0,0,-44,-30,-38,-38,-38,6,3,8,0,69,68,68,64,325,163,152,156,300,1,8,11,10,10,10,0,0,0,10,10,9,9,9,8,9,0,36,36]} 1. e4 {[%emt 0:01:00]} c5 {[%emt 0:01:00]} 2. Nf3 {[%emt 0:00:30][%cal Bg1f3,Bf3d4,Bd4b5,Bb5a3,Ba3c2][%mdl 32]} Nc6 {[%emt 0:00:30]} 3. d4 {[%emt 0:00:30]} cxd4 {[%emt 0:00:30]} 4. Nxd4 {[%emt 0:00:30]} Nf6 {[%emt 0:00:30]} 5. Nc3 {[%emt 0:00:30]} e5 {[%emt 0:00:30]} 6. Ndb5 {[%emt 0:00:30]} d6 {[%emt 0:00:30]} 7. Bg5 {[%emt 0:00:30]} a6 {[%emt 0:00:30]} 8. Na3 {[%emt 0:00:30]} b5 {[%emt 0:00:00]} 9. Nd5 {[%emt 0:10:30]} Be7 {[%emt 0:00:00]} 10. Bxf6 {[%emt 0:00:30]} Bxf6 {[%emt 0:00:00]} 11. c4 {[%emt 0:00:30]} b4 {[%emt 0:00:00] B33: Sicilian: Pelikan and Sveshnikov Variations.} 12. Nc2 {[%emt 0:00:30]} O-O $1 {[%emt 0:00:00][%mdl 4] is currently scoring better than 12...a5.} 13. g3 {[%emt 0:00:30]} a5 {[%emt 0:00:00] The position is equal.} 14. h4 {[%emt 0:00:30]} Be6 {[%emt 0:00:30]} 15. Bh3 {[%emt 0:01:30]} a4 {[%emt 0:01:30]} 16. Kf1 {[%emt 0:15:30]} b3 {[%emt 0:04:30]} 17. axb3 {[%emt 0:00:30]} axb3 {[%emt 0:00:30]} 18. Nce3 {[%emt 0:00:30]} Rxa1 {[%emt 0:00:30]} 19. Qxa1 {[%emt 0:00:30]} g6 {[%emt 0:00:30] [#]} 20. Kg2 $146 {[%emt 0:09:30]} ({Predecessor:} 20. Qd1 Nd4 21. h5 Bg7 22. hxg6 Bxh3+ 23. Rxh3 fxg6 24. Qg4 Rf3 25. Qh4 Qxh4 26. Rxh4 Rf7 27. Kg2 h5 28. g4 Nf3 29. Rh1 h4 30. Nc3 Bh6 31. Ned5 {½-½ (31) Laine,J (2263)-Sazon,A (2296) ICCF email 2020}) 20... Bg7 {[%emt 0:11:30]} 21. h5 {[%emt 0:05:30]} f5 {[%emt 0:08:30][%cal Bf7f5,Bf5f4][%mdl 32]} 22. hxg6 {[%emt 0:00:00]} hxg6 {[%emt 0:00:30]} 23. Qa6 {[%emt 0:04:00]} Nd4 {[%emt 0:02:30]} 24. c5 {[%emt 0:20:30]} dxc5 {[%emt 0:05:30]} 25. Qa7 {[%emt 0:00:30]} Rf7 {[%emt 0:00:30] Inhibits Ne7+.} (25... fxe4 $2 26. Ne7+ Kf7 27. Nc6+ Qd7 28. Qxd7+ Bxd7 29. Bxd7 $18) 26. Qxc5 {[%emt 0:00:30]} f4 {[%emt 0:05:30]} ({Don't play} 26... fxe4 27. Bxe6 Nxe6 28. Qc4 $16 (28. Qc6 Qd7 $14)) (26... Bf8 $5 {[%cal Rf8c5]} 27. Qc4 Qa8 $17) 27. Bxe6 {[%emt 0:08:03]} Nxe6 {[%emt 0:00:30]} 28. Qc6 {[%emt 0:00:01]} Nd4 {[%emt 0:02:30] [#]} (28... Qd7 $11 29. Qxd7 Rxd7) 29. Qxg6 $1 $14 {[%emt 0:00:26]} fxe3 {[%emt 0:03:30]} 30. fxe3 {[%emt 0:00:30] Chess con chili.} Qa5 $2 {[%emt 0:09:30][%mdl 8192]} 31. exd4 {[%emt 0:08:39]} (31. Qh7+ $142 Kf8 32. exd4) 31... Qd2+ $18 {[%emt 0:00:30]} 32. Kh3 {[%emt 0:00:04]} Qxb2 {[%emt 0:10:30]} (32... exd4 $16 33. Rh2 Qh6+ 34. Qxh6 Bxh6) 33. Qe6 $2 {[%emt 0:00:39]} ({White should try} 33. Qg5 $18 Qe2 34. Ne7+ Rxe7 35. Qxe7) 33... Qe2 $1 $11 {[%emt 0:00:30]} 34. Ne7+ {[%emt 0:01:24]} Kf8 {[%emt 0:00:00]} 35. Ng6+ {[%emt 0:00:10]} Kg8 {[%emt 0:00:00]} 36. Ne7+ {[%emt 0:00:09]} Kf8 {[%emt 0:00:00] [#] Strongly threatening ...Qh5+.} 37. Ng6+ {[%emt 0:00:01]} Kg8 {[%emt 0:00:00]} 38. Qe8+ {[%emt 0:09:27]} Bf8 {[%emt 0:00:30]} 39. Qxe5 {[%emt 0:00:30][%csl Gg6][%cal Re5h8]} Rh7+ {[%emt 0:00:30]} 40. Nh4 {[%emt 0:00:30] And now Qd5+ would win.} b2 {[%emt 0:00:30]} 41. Qf5 {[%emt 0:00:30]} Qc2 {[%emt 0:00:30]} 42. Rf1 {Weighted Error Value: White=0.34/Black=0.29 (precise)} 1/2-1/2

[Event "Marmaris Karya-19 GM-May 2022"]
[Site "Icmeler-Marmaris"]
[Date "2022.05.15"]
[Round "3.3"]
[White "Ozsakallioglu, Okan"]
[Black "Gholami, Aryan"]
[Result "0-1"]
[ECO "B41"]
[WhiteElo "2312"]
[BlackElo "2530"]
[Annotator "TA"]
[PlyCount "74"]
[EventDate "2022.05.15"]
[EventType "schev"]
[EventCountry "TUR"]
[SourceTitle "playchess.com"]
[Source "ChessBase"]
[SourceQuality "1"]
[TimeControl "5400+30"]

{[%evp 14,74,39,47,62,57,80,59,62,17,55,46,55,43,41,62,69,68,85,66,128,104,108,29,33,43,43,32,26,-48,-28,-47,-19,-57,-49,-214,-233,-207,-223,-269,-274,-270,-267,-278,-249,-860,-877,-863,-847,-927,-903,-1200,-1185,-1374,-893,-1018,-1019,-979,-965,-29992,-29993,-29993,-29994]} 1. e4 {[%emt 0:05:00]} c5 {[%emt 0:24:00]} 2. Nf3 {[%emt 0:00:30]} e6 {[%emt 0:00:00]} 3. d4 {[%emt 0:00:00]} cxd4 {[%emt 0:00:00]} 4. Nxd4 {[%emt 0:00:00]} a6 {[%emt 0:00:30]} 5. c4 {[%emt 0:00:30]} Nf6 {[%emt 0:00:30]} 6. Nc3 {[%emt 0:00:00]} Qc7 {[%emt 0:00:00]} 7. Be2 {[%emt 0:00:00]} Bb4 {[%emt 0:06:00]} 8. Nc2 {[%emt 0:00:30]} Be7 {[%emt 0:00:00] 8...Bxc3+ is more advanced technology. B41: Sicilian: Kan Variation: 5 c4.} 9. Be3 {[%emt 0:07:30]} d6 {[%emt 0:00:00]} 10. Qd2 {[%emt 0:00:30] [#]} Nbd7 $146 {[%emt 0:00:30] White is slightly better.} ({Predecessor:} 10... b6 11. f3 Bb7 12. g4 Nc6 13. g5 Nd7 14. h4 Rc8 15. b3 Qb8 16. h5 b5 17. cxb5 axb5 18. Nxb5 {0-1 (47) Salomon,J (2503)-Gordievsky,D (2630) Moscow 2018}) 11. g4 {[%emt 0:00:30] g5 is the strong threat.} Ne5 {[%emt 0:00:30]} 12. g5 {[%emt 0:00:30]} Nfg4 {[%emt 0:00:30]} 13. Bf4 {[%emt 0:09:30]} h6 {[%emt 0:12:30]} 14. gxh6 {[%emt 0:05:30]} Nxh6 {[%emt 0:04:30]} 15. Rg1 {[%emt 0:00:30] Prevents Nhg4.} Kf8 {[%emt 0:02:30]} 16. O-O-O {[%emt 0:04:30][%cal Oh2h4]} f6 {[%emt 0:02:30]} (16... Ng8 $14) 17. Bg3 {[%emt 0:22:30]} Nhf7 {[%emt 0:00:30]} 18. f4 {[%emt 0:00:30]} (18. b3 $16) 18... Nxc4 $11 {[%emt 0:00:30]} 19. Bxc4 {[%emt 0:00:30]} Qxc4 {[%emt 0:00:30]} 20. Kb1 {[%emt 0:00:30][%cal Of4f5]} b5 {[%emt 0:00:30][%cal Bb7b5,Bb5b4][%mdl 32]} 21. Ne3 {[%emt 0:00:30]} ({White should play} 21. b3 $11 Qc5 22. h4) 21... Qc6 $1 $15 {[%emt 0:00:30] And now ...b4 would win.} 22. Rc1 $1 {[%emt 0:00:30][%cal Oc3d5] Hoping for Ncd5!} Qb7 $36 {[%emt 0:00:30][%mdl 2048] Against Ncd5. next ...b4 is good for Black. Black is more active.} 23. f5 {[%emt 0:00:30]} b4 {[%emt 0:00:30]} 24. Ncd5 {[%emt 0:00:30] White does not recover from this.} exd5 $19 {[%emt 0:00:30]} 25. Nxd5 {[%emt 0:00:30] [#] Black must now prevent Rc7.} Bd8 {[%emt 0:00:30][%cal Be7d8,Bd8c7,Bc7b6][%mdl 32] Against Rc7} 26. Qg2 {[%emt 0:00:30][%cal Og3d6]} Rh7 {[%emt 0:00:30]} 27. Bh4 {[%emt 0:03:30][%cal Og2g6] [#] Strongly threatening Qg6!} Ng5 $1 {[%emt 0:06:30]} (27... Rxh4 {leads to mate.} 28. Qxg7+ Ke8 29. Qg8+ Kd7 30. Qxf7+) 28. Bxg5 {[%emt 0:07:30]} fxg5 {[%emt 0:00:30]} 29. Rc7 $2 {[%emt 0:01:30]} (29. h4 gxh4 30. Qh2) 29... Bxc7 {[%emt 0:02:30]} 30. Qxg5 {[%emt 0:00:00]} Bb6 {[%emt 0:01:30]} 31. Rf1 {[%emt 0:01:00]} Bd4 {[%emt 0:09:30]} 32. Rd1 {[%emt 0:23:48] [#]} Rxh2 $1 {[%emt 0:06:30][%cal Ob4b3]} 33. Rxd4 {[%emt 0:03:10]} (33. Qd8+ Kf7) 33... Qc6 {[%emt 0:00:00]} 34. Qe7+ {[%emt 0:01:18]} Kg8 {[%emt 0:00:00]} 35. Qd8+ {[%emt 0:00:06]} Kh7 {[%emt 0:00:30] ( -> ...Rh1+)} 36. Nf6+ {[%emt 0:03:37]} gxf6 {[%emt 0:00:00]} 37. Qe7+ {[%emt 0:00:22]} Kg8 {Weighted Error Value: White=0.86/Black=0.24 (precise)} 0-1

[Event "Marmaris Karya-19 GM-May 2022"]
[Site "Icmeler-Marmaris"]
[Date "2022.05.15"]
[Round "3.4"]
[White "Darban, Morteza"]
[Black "Sevdimaliyev, Urfan"]
[Result "1/2-1/2"]
[ECO "A08"]
[WhiteElo "2279"]
[BlackElo "2331"]
[Annotator "TA"]
[PlyCount "120"]
[EventDate "2022.05.15"]
[EventType "schev"]
[EventCountry "TUR"]
[SourceTitle "playchess.com"]
[Source "ChessBase"]
[SourceQuality "1"]
[TimeControl "5400+30"]

{[%evp 17,120,20,28,29,18,0,0,0,0,26,38,49,43,29,36,43,37,20,29,32,35,40,43,46,43,40,39,6,10,0,0,0,0,0,0,0,0,0,15,0,20,22,23,23,23,22,24,37,45,53,44,50,57,8,8,8,8,8,8,8,5,8,40,2,2,4,8,0,0,0,0,0,0,0,0,0,0,0,0,0,0,0,0,0,0,0,0,0,0,0,0,0,0,0,0,0,0,0,7,7,7,7,7,0,0]} 1. e4 {[%emt 0:03:00]} c5 {[%emt 0:16:00]} 2. Nf3 {[%emt 0:00:00]} Nf6 {[%emt 0:01:30]} 3. d3 {[%emt 0:01:00]} d5 {[%emt 0:01:30]} 4. Nbd2 {[%emt 0:09:30]} Nc6 {[%emt 0:03:30]} 5. g3 {[%emt 0:00:30]} g6 {[%emt 0:00:30]} 6. Bg2 {[%emt 0:00:30]} Bg7 {[%emt 0:00:30]} 7. O-O {[%emt 0:00:30]} O-O {[%emt 0:00:00]} 8. Re1 {[%emt 0:06:30]} e6 {[%emt 0:00:00]} 9. c3 {[%emt 0:00:30]} a5 {[%emt 0:00:30]} 10. a4 {[%emt 0:14:30] A08: King's Indian Attack.} b6 {[%emt 0:07:30]} 11. Qc2 {[%emt 0:05:30]} Ba6 {[%emt 0:07:30]} 12. exd5 {[%emt 0:00:30]} exd5 {[%emt 0:00:30] [#]} 13. Nb3 $146 {[%emt 0:01:30]} ({Predecessor:} 13. Nf1 h6 14. Bd2 Rc8 15. Rad1 Qd7 16. Bf4 Rfe8 17. Ne5 Nxe5 18. Bxe5 Rcd8 19. d4 {1-0 (63) Bortnyk,M (2416)-Chigaev,M (2526) Minsk 2015}) 13... Qd7 {[%emt 0:04:30]} 14. d4 $1 {[%emt 0:00:30]} c4 {[%emt 0:00:30]} 15. Nbd2 {[%emt 0:00:30]} Rae8 {[%emt 0:00:30]} 16. Nf1 {[%emt 0:07:30]} Rxe1 {[%emt 0:15:30]} 17. Nxe1 {[%emt 0:01:30]} Rc8 {[%emt 0:01:30]} 18. Bg5 {[%emt 0:06:30]} Ne7 {[%emt 0:13:30]} 19. Nf3 {[%emt 0:04:30]} Ne4 {[%emt 0:06:01]} 20. Bxe7 {[%emt 0:01:30]} Qxe7 {[%emt 0:00:01]} 21. Re1 {[%emt 0:00:30]} Qd7 {[%emt 0:02:06]} 22. N1d2 {[%emt 0:14:57]} Nxd2 {[%emt 0:00:55]} 23. Nxd2 {[%emt 0:00:03][%cal Bf3d2,Bd2b1,Bb1a3,Ba3c2][%mdl 32]} Bb7 {[%emt 0:01:51]} 24. b3 {[%emt 0:00:30]} cxb3 {[%emt 0:03:46]} 25. Qxb3 {[%emt 0:00:30]} Qc7 {[%emt 0:01:05]} 26. Nb1 {[%emt 0:03:40]} Rd8 {[%emt 0:01:14]} 27. Na3 {[%emt 0:09:36]} Bc6 {[%emt 0:01:30]} 28. Rb1 {[%emt 0:04:25]} Bf8 {[%emt 0:01:04]} 29. Nc2 {[%emt 0:02:05]} Bh6 $1 {[%emt 0:03:25]} 30. Qxb6 {[%emt 0:00:13]} Qxb6 {[%emt 0:00:14]} 31. Rxb6 {[%emt 0:00:02]} Bxa4 {[%emt 0:00:08]} 32. Ne3 {[%emt 0:00:03]} Re8 {[%emt 0:03:29]} 33. Bxd5 {[%emt 0:00:02]} Bxe3 {[%emt 0:00:18]} 34. fxe3 {[%emt 0:00:09]} Rxe3 $14 {[%emt 0:00:04][%mdl 4096] Endgame KRB-KRB} 35. Rb8+ {[%emt 0:03:03]} (35. c4 $14) 35... Kg7 $11 {[%emt 0:00:01]} 36. Rc8 {[%emt 0:00:00]} Bd1 {[%emt 0:03:34]} 37. Rc7 {[%emt 0:00:01]} a4 {[%emt 0:01:04]} 38. Kf2 {[%emt 0:02:10]} Re2+ {[%emt 0:00:41]} 39. Kf1 {[%emt 0:00:01] [#] Strongly threatening Bf3.} Re3 {[%emt 0:00:38] Against Bf3} 40. Bxf7 {[%emt 0:00:42] And now Bb3+ would win.} Kf6 {[%emt 0:00:14] The position is equal.} 41. Bd5 {[%emt 0:00:48]} a3 {[%emt 0:01:32]} 42. h4 {[%emt 0:00:55][%csl Gd5][%cal Rc7f7]} g5 {[%emt 0:00:20]} 43. hxg5+ {[%emt 0:00:32]} Kxg5 {[%emt 0:00:05]} 44. Rxh7 {[%emt 0:00:28]} Rxc3 {[%emt 0:00:16]} 45. Ra7 {[%emt 0:00:15]} Rxg3 {[%emt 0:00:21]} 46. Ke1 {[%emt 0:00:19] [#] Rg7+ is the strong threat.} Bh5 {[%emt 0:00:35]} 47. Kd2 {[%emt 0:00:00]} Bg6 {[%emt 0:00:16]} 48. Bc4 {[%emt 0:00:05]} Bf5 {[%emt 0:00:54]} 49. d5 {[%emt 0:00:28]} Kf6 {[%emt 0:00:30]} 50. d6 {[%emt 0:00:05]} Rg7 {[%emt 0:00:22] Inhibits Rf7+.} 51. Ra6 {[%emt 0:01:27]} Rd7 {[%emt 0:00:13]} 52. Kc3 {[%emt 0:01:10]} Ke5 {[%emt 0:00:28]} 53. Ra5+ {[%emt 0:00:01]} Kf6 {[%emt 0:00:11]} 54. Ra6 {[%emt 0:00:30]} Ke5 {[%emt 0:00:02]} 55. Ra5+ {[%emt 0:00:27]} Kf6 {[%emt 0:00:01]} 56. Rd5 {[%emt 0:00:17]} a2 {[%emt 0:00:55]} 57. Rd1 {[%emt 0:01:18]} a1=Q+ {[%emt 0:00:30]} 58. Rxa1 {[%emt 0:00:30]} Rxd6 {[%emt 0:00:00]} 59. Ra6 {[%emt 0:00:00]} Rxa6 {[%emt 0:00:00]} 60. Bxa6 {[%emt 0:00:00]} Ke5 {[%emt 0:00:13] Weighted Error Value: White=0.03 (flawless) /Black=0.02 (flawless)} 1/2-1/2

[Event "Marmaris Karya-19 GM-May 2022"]
[Site "Icmeler-Marmaris"]
[Date "2022.05.15"]
[Round "3.5"]
[White "Ozdemir, Serhan Berat"]
[Black "Benidze, Davit"]
[Result "0-1"]
[ECO "B15"]
[WhiteElo "2117"]
[BlackElo "2425"]
[Annotator "TA"]
[PlyCount "84"]
[EventDate "2022.05.15"]
[EventType "schev"]
[EventCountry "TUR"]
[SourceTitle "playchess.com"]
[Source "ChessBase"]
[SourceQuality "1"]
[TimeControl "5400+30"]

{[%evp 17,84,29,50,27,42,22,22,10,16,-14,0,-9,-4,-16,-8,-9,-12,-6,0,-23,-17,-16,0,0,54,40,61,-33,-25,-66,-67,-137,-87,-86,-42,-53,-64,-52,0,-8,-27,-102,-95,-83,-84,-100,-94,-87,-97,-214,-104,-86,0,0,0,0,0,-251,-260,-371,-370,-346,-326,-447,-422,-682,-676,-839,-737]} 1. e4 {[%emt 0:01:00]} g6 {[%emt 0:01:00]} 2. d4 {[%emt 0:00:30]} Bg7 {[%emt 0:00:30]} 3. Nc3 {[%emt 0:00:30]} c6 {[%emt 0:00:30]} 4. Nf3 {[%emt 0:00:30]} d5 {[%emt 0:00:30]} 5. h3 {[%emt 0:00:30]} Nh6 {[%emt 0:00:00]} 6. Bd3 {[%emt 0:21:30]} O-O {[%emt 0:00:00]} 7. O-O {[%emt 0:02:30]} f6 {[%emt 0:00:00]} 8. Re1 {[%emt 0:09:30]} Nf7 {[%emt 0:00:00]} 9. Bf1 {[%emt 0:01:30]} e6 {[%emt 0:04:30]} 10. Be3 {[%emt 0:00:30] B15: Caro-Kann: 3 Nc3: 3...g6 and 3...dxe4 4 Nxe4 Nf6 5 Nxf6+ exf6.} Nd7 {[%emt 0:00:30]} 11. Qd2 {[%emt 0:00:30] [#]} b6 $146 {[%emt 0:00:30]} ({Predecessor:} 11... Re8 12. Rad1 b5 13. a3 Nb6 14. b3 Bf8 15. Qc1 a5 16. exd5 exd5 17. Bf4 Rxe1 18. Rxe1 {1-0 (45) Tregubov,P (2537)-Terry,R (2504) Chess.com INT 2022}) 12. a4 {[%emt 0:00:30][%cal Oa4a5] The position is equal.} a6 {[%emt 0:00:30]} 13. g3 {[%emt 0:15:30]} Bb7 {[%emt 0:06:30] Threatens to win with ...dxe4.} 14. exd5 {[%emt 0:03:30]} cxd5 {[%emt 0:00:30]} 15. Rad1 {[%emt 0:00:00]} Rc8 {[%emt 0:00:00]} 16. Bg2 {[%emt 0:01:00]} Re8 {[%emt 0:00:00]} 17. h4 {[%emt 0:00:30]} Qe7 {[%emt 0:00:30]} 18. b3 {[%emt 0:09:30]} Qf8 {[%emt 0:01:30]} 19. Bh3 {[%emt 0:00:30]} Nd6 {[%emt 0:00:30]} 20. Bf4 {[%emt 0:00:30]} Ne4 {[%emt 0:00:30]} (20... f5 $11) 21. Nxe4 $14 {[%emt 0:00:30]} dxe4 {[%emt 0:00:30] [#]} 22. Nh2 {[%emt 0:00:30]} ({Better is} 22. d5 $1 $14 Nc5 23. b4 Bxd5 24. bxc5 Rxc5 25. Be3 exf3 26. Bxc5 Qxc5 27. Qxd5 exd5 28. Rxe8+ Kf7 29. Rc8) 22... f5 $15 {[%emt 0:00:30]} 23. Be3 {[%emt 0:00:30]} Red8 {[%emt 0:00:30]} 24. Qe2 {[%emt 0:08:30]} (24. Bf1 $15) 24... h6 {[%emt 0:08:30]} (24... Rc3 $142 {...Nf6 is the strong threat.} 25. Rc1 Rdc8) 25. c4 {[%emt 0:02:30]} Qb4 {[%emt 0:04:30]} 26. h5 {[%emt 0:00:00]} g5 $1 {[%emt 0:13:30]} 27. d5 {[%emt 0:01:00][%cal Bd4d5,Bd5e6,Be6e7][%mdl 32]} Ne5 {[%emt 0:00:30]} (27... Qxb3 28. dxe6 Ne5 29. Bxf5 $18) (27... Qd6 $15) 28. dxe6 {[%emt 0:04:15]} g4 {[%emt 0:00:30]} 29. Bf1 {[%emt 0:00:33]} (29. Rxd8+ $11 Rxd8 30. Bf1) 29... Nd3 $17 {[%emt 0:07:30]} (29... Qxb3 30. Rxd8+ Rxd8 31. e7 $11) 30. e7 {[%emt 0:00:32]} Re8 {[%emt 0:00:30]} (30... Qxe7 $6 31. Bxb6 Rd6 32. Rxd3 Rxb6 33. Red1 $11) 31. Bxh6 {[%emt 0:02:57]} Nxe1 {[%emt 0:01:30]} (31... Bxh6 $6 32. Rxd3 Rxe7 33. Rdd1 $11) 32. Bxg7 {[%emt 0:00:07]} Kxg7 {[%emt 0:01:30]} 33. Qb2+ {[%emt 0:02:56]} (33. Qe3 $17 {was called for.} Qxe7 34. Rxe1) 33... Kf7 {[%emt 0:01:30]} (33... Kg8 $19 {is more deadly. And now ...e3 would win.} 34. Qc1 Rxe7 $1 35. Rxe1 Rf8) 34. h6 {[%emt 0:00:51][%cal Oh2g4] Intending Nxg4! and mate.} Qxe7 {[%emt 0:09:30]} 35. Qg7+ $1 $11 {[%emt 0:00:27]} Ke6 {[%emt 0:00:00][%cal Bf7e6,Be6e5,Be5d6,Bd6c7][%mdl 32]} 36. Qg6+ {[%emt 0:00:40]} Ke5 {[%emt 0:00:00] White must now prevent ...Nf3+.} (36... Qf6 $2 {[#]} 37. Rd6+ $3 {[%mdl 512]} Kxd6 38. Qxf6+ Kc7 39. Qxf5 $18) 37. Rxe1 {[%emt 0:06:30][%mdl 8192]} (37. f4+ $1 $11 {and White stays safe.} gxf3 38. Rxe1 f2+ 39. Kxf2) 37... Qf6 $19 {[%emt 0:03:30] The board is on fire.} 38. Qh5 {[%emt 0:00:18]} (38. Qxf6+ $142 Kxf6 39. Bg2) 38... Kd6 {[%emt 0:00:30] Active counter play!} 39. c5+ {[%emt 0:00:59]} Kc7 {[%emt 0:03:30]} ({But not} 39... Kxc5 40. Nxg4 Qc3 41. Re3 $18 (41. Qxf5+ Kb4 $18)) ({Inferior is} 39... bxc5 40. Bc4 $17) 40. Bc4 {[%emt 0:00:10]} e3 {[%emt 0:02:30] Black is clearly winning.} 41. f3 {[%emt 0:04:09]} (41. Qf7+ $142 Qxf7 42. Bxf7 exf2+ 43. Kxf2 Rxe1 44. Kxe1) 41... bxc5 {[%emt 0:10:30]} 42. fxg4 {[%emt 0:00:53]} Qc6 {Weighted Error Value: White=0.42/Black=0.15 (very precise)} 0-1